{"text_format":"1","workbook":"xlsx","n_sheets":1,"sheets":["sheet4"],"not_rendered":{"charts":0,"images":0,"macros":1,"external_links":0,"defined_names":0,"comments":0,"pivot_tables":0},"unopened":[],"bounds":{"document_bytes":16777216,"sheet_cells":100000,"rows_first":2000,"rows_last":500,"rows_between":2000,"halvings":0,"cell_chars":16384,"cell_head_chars":4096},"cells_cut":0,"cells_raw":0,"read":"whole","date_system":"1900"}

{"sheet":"sheet4","index":0,"n_rows":39,"n_cols":9,"rows_kept":39,"cut":false,"hidden":false,"merged":[]}
["q1","q23","q36","q37","Q40","q1","q23","q36","q37"]
["ابتسام محمد محمود سلمان محمد الكروي","جامعة ديالى  - كلية التربية الاساسية","بكالوريوس","اللغة الانكليزية","ابتسام محمد محمود سلمان",{"$f":"VLOOKUP(\"*\"&E2&\"*\",$A:$D,1,0)","v":"ابتسام محمد محمود سلمان محمد الكروي"},{"$f":"VLOOKUP(\"*\"&E2&\"*\",$A:$D,2,0)","v":"جامعة ديالى  - كلية التربية الاساسية"},{"$f":"VLOOKUP(\"*\"&$E2&\"*\",$A:$D,3,0)","v":"بكالوريوس"},{"$f":"VLOOKUP(\"*\"&$E2&\"*\",$A:$D,4,0)","v":"اللغة الانكليزية"}]
["احمد محمد جدوع محمود ثلج العزاوي","معهد اعداد المعلمين","دبلوم","رياضيات","احمد محمد جدوع محمود",{"$f":"VLOOKUP(\"*\"&E3&\"*\",$A:$D,1,0)","v":"احمد محمد جدوع محمود ثلج العزاوي"},{"$f":"VLOOKUP(\"*\"&E3&\"*\",$A:$D,2,0)","v":"معهد اعداد المعلمين"},{"$f":"VLOOKUP(\"*\"&$E3&\"*\",$A:$D,3,0)","v":"دبلوم"},{"$f":"VLOOKUP(\"*\"&$E3&\"*\",$A:$D,4,0)","v":"رياضيات"}]
["شذى توفيق هادي توفيق خضر العلكاوي","معهد اعداد المعلمات الصباحي","دبلوم","فنية","شذى توفيق هادي توفيق","شذى توفيق هادي توفيق خضر العلكاوي",{"$f":"VLOOKUP(\"*\"&E4&\"*\",$A:$D,2,0)","v":"معهد اعداد المعلمات الصباحي"},{"$f":"VLOOKUP(\"*\"&$E4&\"*\",$A:$D,3,0)","v":"دبلوم"},{"$f":"VLOOKUP(\"*\"&$E4&\"*\",$A:$D,4,0)","v":"فنية"}]
["شيرين مصطفى عباس حسن كاظم الدليمي","التربيه الاساسية","بكالوريوس","الاجتماعيات","شيرين مصطفى عباس حسن","شيرين مصطفى عباس حسن كاظم الدليمي",{"$f":"VLOOKUP(\"*\"&E5&\"*\",$A:$D,2,0)","v":"التربيه الاساسية"},{"$f":"VLOOKUP(\"*\"&$E5&\"*\",$A:$D,3,0)","v":"بكالوريوس"},{"$f":"VLOOKUP(\"*\"&$E5&\"*\",$A:$D,4,0)","v":"الاجتماعيات"}]
["مريم فيصل حمد عواد حسين الجبوري","كلية الامام الاعظم","بكالوريوس","اسلامية","مريم فيصل حمد عواد","مريم فيصل حمد عواد حسين الجبوري",{"$f":"VLOOKUP(\"*\"&E6&\"*\",$A:$D,2,0)","v":"كلية الامام الاعظم"},{"$f":"VLOOKUP(\"*\"&$E6&\"*\",$A:$D,3,0)","v":"بكالوريوس"},{"$f":"VLOOKUP(\"*\"&$E6&\"*\",$A:$D,4,0)","v":"اسلامية"}]
["مروه عدنان خليفه حمدي خضر صالحيه","المعهد التقني بعقوبه","دبلوم","محاسبه","مروه عدنان خليفه حمدي","مروه عدنان خليفه حمدي خضر صالحيه",{"$f":"VLOOKUP(\"*\"&E7&\"*\",$A:$D,2,0)","v":"المعهد التقني بعقوبه"},{"$f":"VLOOKUP(\"*\"&$E7&\"*\",$A:$D,3,0)","v":"دبلوم"},{"$f":"VLOOKUP(\"*\"&$E7&\"*\",$A:$D,4,0)","v":"محاسبه"}]
["سيف صلاح راشد سنجار حمد التميمي","كلية العلوم","بكالوريوس","كيمياء","سيف صلاح راشد سنجار","سيف صلاح راشد سنجار حمد التميمي",{"$f":"VLOOKUP(\"*\"&E8&\"*\",$A:$D,2,0)","v":"كلية العلوم"},{"$f":"VLOOKUP(\"*\"&$E8&\"*\",$A:$D,3,0)","v":"بكالوريوس"},{"$f":"VLOOKUP(\"*\"&$E8&\"*\",$A:$D,4,0)","v":"كيمياء"}]
["ايلاف عامر عدنان ياسين مطلك المشهداني","معهد فنون الجميلة","دبلوم","فنية","ايلاف عامر عدنان ياسين","ايلاف عامر عدنان ياسين مطلك المشهداني",{"$f":"VLOOKUP(\"*\"&E9&\"*\",$A:$D,2,0)","v":"معهد فنون الجميلة"},{"$f":"VLOOKUP(\"*\"&$E9&\"*\",$A:$D,3,0)","v":"دبلوم"},{"$f":"VLOOKUP(\"*\"&$E9&\"*\",$A:$D,4,0)","v":"فنية"}]
["محمد خلف هاشم محمد بكة الصعبي","جامعة ديالى كلية التربية للعلوم لانسانية","بكالوريوس","الجغرافية","محمد خلف هاشم محمد","محمد خلف هاشم محمد بكة الصعبي",{"$f":"VLOOKUP(\"*\"&E10&\"*\",$A:$D,2,0)","v":"جامعة ديالى كلية التربية للعلوم لانسانية"},{"$f":"VLOOKUP(\"*\"&$E10&\"*\",$A:$D,3,0)","v":"بكالوريوس"},{"$f":"VLOOKUP(\"*\"&$E10&\"*\",$A:$D,4,0)","v":"الجغرافية"}]
["هاشم خلف هاشم محمد بكة الصعبي","جامعة ديالى كلية التربية للعلوم لانسانية","بكالوريوس","علوم القران والتربية لاسلامية","هاشم خلف هاشم محمد","هاشم خلف هاشم محمد بكة الصعبي",{"$f":"VLOOKUP(\"*\"&E11&\"*\",$A:$D,2,0)","v":"جامعة ديالى كلية التربية للعلوم لانسانية"},{"$f":"VLOOKUP(\"*\"&$E11&\"*\",$A:$D,3,0)","v":"بكالوريوس"},{"$f":"VLOOKUP(\"*\"&$E11&\"*\",$A:$D,4,0)","v":"علوم القران والتربية لاسلامية"}]
["دنيا جاسم محمد بسام جاسم الصالحي","كلية التربية للعلوم الانسانية","بكالوريوس","اللغة العربية","دنيا جاسم محمد بسام","دنيا جاسم محمد بسام جاسم الصالحي",{"$f":"VLOOKUP(\"*\"&E12&\"*\",$A:$D,2,0)","v":"كلية التربية للعلوم الانسانية"},{"$f":"VLOOKUP(\"*\"&$E12&\"*\",$A:$D,3,0)","v":"بكالوريوس"},{"$f":"VLOOKUP(\"*\"&$E12&\"*\",$A:$D,4,0)","v":"اللغة العربية"}]
["علي جعفر عبدالحسين سلطان العلي الحضاري","كلية التربية للعلوم الانسانية","بكالوريوس","علوم تربوية ونفسية","علي جعفر عبدالحسين سلطان","علي جعفر عبدالحسين سلطان العلي الحضاري",{"$f":"VLOOKUP(\"*\"&E13&\"*\",$A:$D,2,0)","v":"كلية التربية للعلوم الانسانية"},{"$f":"VLOOKUP(\"*\"&$E13&\"*\",$A:$D,3,0)","v":"بكالوريوس"},{"$f":"VLOOKUP(\"*\"&$E13&\"*\",$A:$D,4,0)","v":"علوم تربوية ونفسية"}]
["علي حسين علي عبدالله خميس الطائي","كلية التربية للعلوم الصرفة","بكالوريوس","كيمياء","علي حسين علي عبدالله","علي حسين علي عبدالله خميس الطائي",{"$f":"VLOOKUP(\"*\"&E14&\"*\",$A:$D,2,0)","v":"كلية التربية للعلوم الصرفة"},{"$f":"VLOOKUP(\"*\"&$E14&\"*\",$A:$D,3,0)","v":"بكالوريوس"},{"$f":"VLOOKUP(\"*\"&$E14&\"*\",$A:$D,4,0)","v":"كيمياء"}]
["انسام رعد سحاب جاسم صحو الصعبي","كليه اليرموك","بكالوريوس","اللغة الانكليزية","انسام رعد سحاب جاسم","انسام رعد سحاب جاسم صحو الصعبي",{"$f":"VLOOKUP(\"*\"&E15&\"*\",$A:$D,2,0)","v":"كليه اليرموك"},{"$f":"VLOOKUP(\"*\"&$E15&\"*\",$A:$D,3,0)","v":"بكالوريوس"},{"$f":"VLOOKUP(\"*\"&$E15&\"*\",$A:$D,4,0)","v":"اللغة الانكليزية"}]
["حنين وليد عبود ابراهيم حسن القره غولي","الكلية التقنيةا لادارية جامعة الفرات الاوسط كوفة","بكالوريوس","محاسبة","حنين وليد عبود ابراهيم","حنين وليد عبود ابراهيم حسن القره غولي",{"$f":"VLOOKUP(\"*\"&E16&\"*\",$A:$D,2,0)","v":"الكلية التقنيةا لادارية جامعة الفرات الاوسط كوفة"},{"$f":"VLOOKUP(\"*\"&$E16&\"*\",$A:$D,3,0)","v":"بكالوريوس"},{"$f":"VLOOKUP(\"*\"&$E16&\"*\",$A:$D,4,0)","v":"محاسبة"}]
["إباء احمد حيدر شناوه عبد شلال التميمي","معهد اعداد المعلمات","دبلوم","عربية","إباء احمد حيدر شناوه","إباء احمد حيدر شناوه عبد شلال التميمي",{"$f":"VLOOKUP(\"*\"&E17&\"*\",$A:$D,2,0)","v":"معهد اعداد المعلمات"},{"$f":"VLOOKUP(\"*\"&$E17&\"*\",$A:$D,3,0)","v":"دبلوم"},{"$f":"VLOOKUP(\"*\"&$E17&\"*\",$A:$D,4,0)","v":"عربية"}]
["أبابيل جواد عباس فرج حمادي الصميدعي","جامعة الامام الاعظم","بكالوريوس","اسلامية","أبابيل جواد عباس فرج","أبابيل جواد عباس فرج حمادي الصميدعي",{"$f":"VLOOKUP(\"*\"&E18&\"*\",$A:$D,2,0)","v":"جامعة الامام الاعظم"},{"$f":"VLOOKUP(\"*\"&$E18&\"*\",$A:$D,3,0)","v":"بكالوريوس"},{"$f":"VLOOKUP(\"*\"&$E18&\"*\",$A:$D,4,0)","v":"اسلامية"}]
["أبتسام أحمد رشيد مجيد خليل الصالحي","جامعة ديالى /كلية التربية","بكالوريوس","عربي","أبتسام أحمد رشيد مجيد","أبتسام أحمد رشيد مجيد خليل الصالحي",{"$f":"VLOOKUP(\"*\"&E19&\"*\",$A:$D,2,0)","v":"جامعة ديالى /كلية التربية"},{"$f":"VLOOKUP(\"*\"&$E19&\"*\",$A:$D,3,0)","v":"بكالوريوس"},{"$f":"VLOOKUP(\"*\"&$E19&\"*\",$A:$D,4,0)","v":"عربي"}]
["ابتسام احمد صالح حمد حسن الكروي","كليه التربيه للعلوم الانسانيه","بكالوريوس","ارشاد تربوي","ابتسام احمد صالح حمد","ابتسام احمد صالح حمد حسن الكروي",{"$f":"VLOOKUP(\"*\"&E20&\"*\",$A:$D,2,0)","v":"كليه التربيه للعلوم الانسانيه"},{"$f":"VLOOKUP(\"*\"&$E20&\"*\",$A:$D,3,0)","v":"بكالوريوس"},{"$f":"VLOOKUP(\"*\"&$E20&\"*\",$A:$D,4,0)","v":"ارشاد تربوي"}]
["ابتسام ثاير احمد الياس حسين العبيدي","كليه التربيه /جامعه ديالى","بكالوريوس","تاريخ","ابتسام ثاير احمد الياس","ابتسام ثاير احمد الياس حسين العبيدي",{"$f":"VLOOKUP(\"*\"&E21&\"*\",$A:$D,2,0)","v":"كليه التربيه /جامعه ديالى"},{"$f":"VLOOKUP(\"*\"&$E21&\"*\",$A:$D,3,0)","v":"بكالوريوس"},{"$f":"VLOOKUP(\"*\"&$E21&\"*\",$A:$D,4,0)","v":"تاريخ"}]
["ابتسام حاتم كاظم شلال مرتضى التميمي","معهد اعداد المعلمات","دبلوم","رياضيات","ابتسام حاتم كاظم شلال","ابتسام حاتم كاظم شلال مرتضى التميمي",{"$f":"VLOOKUP(\"*\"&E22&\"*\",$A:$D,2,0)","v":"معهد اعداد المعلمات"},{"$f":"VLOOKUP(\"*\"&$E22&\"*\",$A:$D,3,0)","v":"دبلوم"},{"$f":"VLOOKUP(\"*\"&$E22&\"*\",$A:$D,4,0)","v":"رياضيات"}]
["ابتسام حافظ محمود محمد مطر الكروي","معهد اعداد المعلمات المسائي/ المقدادية","دبلوم","الرياضيات","ابتسام حافظ محمود محمد","ابتسام حافظ محمود محمد مطر الكروي",{"$f":"VLOOKUP(\"*\"&E23&\"*\",$A:$D,2,0)","v":"معهد اعداد المعلمات المسائي/ المقدادية"},{"$f":"VLOOKUP(\"*\"&$E23&\"*\",$A:$D,3,0)","v":"دبلوم"},{"$f":"VLOOKUP(\"*\"&$E23&\"*\",$A:$D,4,0)","v":"الرياضيات"}]
["إبتسام حامد جاسم محمد سلمان الكرخي","كلية التربية للعلوم الانسانية","بكالوريوس","الجغرافية","إبتسام حامد جاسم محمد","إبتسام حامد جاسم محمد سلمان الكرخي",{"$f":"VLOOKUP(\"*\"&E24&\"*\",$A:$D,2,0)","v":"كلية التربية للعلوم الانسانية"},{"$f":"VLOOKUP(\"*\"&$E24&\"*\",$A:$D,3,0)","v":"بكالوريوس"},{"$f":"VLOOKUP(\"*\"&$E24&\"*\",$A:$D,4,0)","v":"الجغرافية"}]
["ابتسام حميد نايف رجب محمد المجمعي","معهد اعداد المعلمات","دبلوم","اللغة الانجليزية","ابتسام حميد نايف رجب","ابتسام حميد نايف رجب محمد المجمعي",{"$f":"VLOOKUP(\"*\"&E25&\"*\",$A:$D,2,0)","v":"معهد اعداد المعلمات"},{"$f":"VLOOKUP(\"*\"&$E25&\"*\",$A:$D,3,0)","v":"دبلوم"},{"$f":"VLOOKUP(\"*\"&$E25&\"*\",$A:$D,4,0)","v":"اللغة الانجليزية"}]
["ابتسام خضير سلمان صالح خلف الزبيدي","كلية التربيه الاساسيه","بكالوريوس","التربية الرياضيه","ابتسام خضير سلمان صالح","ابتسام خضير سلمان صالح خلف الزبيدي",{"$f":"VLOOKUP(\"*\"&E26&\"*\",$A:$D,2,0)","v":"كلية التربيه الاساسيه"},{"$f":"VLOOKUP(\"*\"&$E26&\"*\",$A:$D,3,0)","v":"بكالوريوس"},{"$f":"VLOOKUP(\"*\"&$E26&\"*\",$A:$D,4,0)","v":"التربية الرياضيه"}]
["أبتسام خضير عباس غركان حسين الزهيري","كلية التربية للعلوم الانسانية","بكالوريوس","اللغة الانكليزية","أبتسام خضير عباس غركان","أبتسام خضير عباس غركان حسين الزهيري",{"$f":"VLOOKUP(\"*\"&E27&\"*\",$A:$D,2,0)","v":"كلية التربية للعلوم الانسانية"},{"$f":"VLOOKUP(\"*\"&$E27&\"*\",$A:$D,3,0)","v":"بكالوريوس"},{"$f":"VLOOKUP(\"*\"&$E27&\"*\",$A:$D,4,0)","v":"اللغة الانكليزية"}]
["ابتسام خليفه جاسم حمادي عبدالربيعي","معهد اعداد المعلمات المركزي","دبلوم","اللغة العربية","ابتسام خليفه جاسم حمادي","ابتسام خليفه جاسم حمادي عبدالربيعي",{"$f":"VLOOKUP(\"*\"&E28&\"*\",$A:$D,2,0)","v":"معهد اعداد المعلمات المركزي"},{"$f":"VLOOKUP(\"*\"&$E28&\"*\",$A:$D,3,0)","v":"دبلوم"},{"$f":"VLOOKUP(\"*\"&$E28&\"*\",$A:$D,4,0)","v":"اللغة العربية"}]
["ابتسام خليل ابراهيم مهدي منصور البياتي","كلية الفنون الجميلة","بكالوريوس","التربية الفنية","ابتسام خليل ابراهيم مهدي","ابتسام خليل ابراهيم مهدي منصور البياتي",{"$f":"VLOOKUP(\"*\"&E29&\"*\",$A:$D,2,0)","v":"كلية الفنون الجميلة"},{"$f":"VLOOKUP(\"*\"&$E29&\"*\",$A:$D,3,0)","v":"بكالوريوس"},{"$f":"VLOOKUP(\"*\"&$E29&\"*\",$A:$D,4,0)","v":"التربية الفنية"}]
["ابتسام رشيد مجيد نصيف جاسم الدلفي","كليه تربيه للعلوم الإنسانيه","بكالوريوس","جغرافيه","ابتسام رشيد مجيد نصيف","ابتسام رشيد مجيد نصيف جاسم الدلفي",{"$f":"VLOOKUP(\"*\"&E30&\"*\",$A:$D,2,0)","v":"كليه تربيه للعلوم الإنسانيه"},{"$f":"VLOOKUP(\"*\"&$E30&\"*\",$A:$D,3,0)","v":"بكالوريوس"},{"$f":"VLOOKUP(\"*\"&$E30&\"*\",$A:$D,4,0)","v":"جغرافيه"}]
["ابتسام سبع خميس محمود شلش المجمعي","كليه تربيه ديالى","بكالوريوس","عربي","ابتسام سبع خميس محمود","ابتسام سبع خميس محمود شلش المجمعي",{"$f":"VLOOKUP(\"*\"&E31&\"*\",$A:$D,2,0)","v":"كليه تربيه ديالى"},{"$f":"VLOOKUP(\"*\"&$E31&\"*\",$A:$D,3,0)","v":"بكالوريوس"},{"$f":"VLOOKUP(\"*\"&$E31&\"*\",$A:$D,4,0)","v":"عربي"}]
["ابتسام سلام خلف رحيم حمد الكروي","كليه لتربيه","بكالوريوس","اللغه العربيه","ابتسام سلام خلف رحيم","ابتسام سلام خلف رحيم حمد الكروي",{"$f":"VLOOKUP(\"*\"&E32&\"*\",$A:$D,2,0)","v":"كليه لتربيه"},{"$f":"VLOOKUP(\"*\"&$E32&\"*\",$A:$D,3,0)","v":"بكالوريوس"},{"$f":"VLOOKUP(\"*\"&$E32&\"*\",$A:$D,4,0)","v":"اللغه العربيه"}]
["ابتسام سلمان خطاب عمران عاشور البياتي","معهد معلمات","دبلوم","رياضيات","ابتسام سلمان خطاب عمران","ابتسام سلمان خطاب عمران عاشور البياتي",{"$f":"VLOOKUP(\"*\"&E33&\"*\",$A:$D,2,0)","v":"معهد معلمات"},{"$f":"VLOOKUP(\"*\"&$E33&\"*\",$A:$D,3,0)","v":"دبلوم"},{"$f":"VLOOKUP(\"*\"&$E33&\"*\",$A:$D,4,0)","v":"رياضيات"}]
["ابتسام سليم حسين كباوي دحلوس الشمري","كلية العلوم","بكالوريوس","علوم الحاسوب","ابتسام سليم حسين كباوي","ابتسام سليم حسين كباوي دحلوس الشمري",{"$f":"VLOOKUP(\"*\"&E34&\"*\",$A:$D,2,0)","v":"كلية العلوم"},{"$f":"VLOOKUP(\"*\"&$E34&\"*\",$A:$D,3,0)","v":"بكالوريوس"},{"$f":"VLOOKUP(\"*\"&$E34&\"*\",$A:$D,4,0)","v":"علوم الحاسوب"}]
["ابتسام صباح جاسم محمد ابراهيم المرسومي","جامعه بغداد  كليه ابن رشد","بكالوريوس","جغرافيه","ابتسام صباح جاسم محمد","ابتسام صباح جاسم محمد ابراهيم المرسومي",{"$f":"VLOOKUP(\"*\"&E35&\"*\",$A:$D,2,0)","v":"جامعه بغداد  كليه ابن رشد"},{"$f":"VLOOKUP(\"*\"&$E35&\"*\",$A:$D,3,0)","v":"بكالوريوس"},{"$f":"VLOOKUP(\"*\"&$E35&\"*\",$A:$D,4,0)","v":"جغرافيه"}]
[]
[]
[]
[null,null,null,null,"السلام عليكم المطلوب استخدام VBA في =VLOOKUP(\"*\"&E3&\"*\";$A:$D;1;0) بدل الدالات في الحقول باللون الأخضر بنفس الدالة وبالامكان إضافة حقول اكثر "]